[Event "Romanian Superliga 2024"]
[Site "Mamaia"]
[Date "2024.09.30"]
[Round "3.29"]
[White "Magold, Filip"]
[Black "Costache, Andrei Eugeniu"]
[Result "1-0"]
[ECO "B94"]
[WhiteElo "2406"]
[BlackElo "1977"]
[Annotator "RC"]
[PlyCount "93"]
[EventDate "2024.09.26"]
[EventType "team-tourn"]
[EventCountry "ROU"]
[SourceTitle "playchess.com"]
[Source "ChessBase"]
[SourceQuality "1"]
[TimeControl "40/5400+30:1800+30"]

1. e4 {[%emt 0:00:28]} c5 {[%emt 0:00:41]} 2. Nf3 {[%emt 0:00:08]} d6 {[%emt 0:00:11]} 3. d4 {[%emt 0:00:05]} cxd4 {[%emt 0:00:06]} 4. Nxd4 {[%emt 0:00:05]} Nf6 {[%emt 0:00:46]} 5. Nc3 {[%emt 0:00:08]} a6 {[%emt 0:00:04]} 6. Nb3 {[%emt 0:00:16]} e5 {[%emt 0:05:05]} 7. Bg5 {[%emt 0:02:13]} Be7 {[%emt 0:03:55]} 8. Bxf6 {[%emt 0:00:12]} Bxf6 {[%emt 0:00:07]} 9. Qd3 {[%emt 0:00:02]} Be6 {[%emt 0:05:32]} 10. O-O-O {[%emt 0:00:11]} Be7 {[%emt 1:19:03]} 11. g3 {[%emt 0:03:33]} Nc6 {[%emt 0:00:00]} 12. Kb1 {[%emt 0:03:56]} Rc8 {[%emt 0:00:00]} 13. Nd5 {[%emt 0:09:11]} Bxd5 {[%emt 0:00:00]} 14. Qxd5 {[%emt 0:01:40]} Qb6 {[%emt 0:00:00]} 15. c3 {[%emt 0:00:15]} O-O {[%emt 0:00:00]} 16. f4 {[%emt 0:02:37]} a5 {[%emt 0:00:00]} 17. a4 {[%emt 0:12:41]} exf4 {[%emt 0:00:00]} 18. gxf4 {[%emt 0:09:31]} Bf6 {[%emt 0:00:00]} 19. Bb5 {[%emt 0:04:05]} Qe3 {[%emt 0:00:00]} 20. Rhf1 {[%emt 0:01:46]} Rfe8 {[%emt 0:00:00]} 21. Nxa5 {[%emt 0:08:58]} Nxa5 {[%emt 0:00:00]} 22. Bxe8 {[%emt 0:00:05]} Rxe8 {[%emt 0:00:00]} 23. Qxa5 {[%emt 0:00:17]} Qxe4+ {[%emt 0:00:00]} 24. Kc1 {[%emt 0:07:19]} Qe3+ {[%emt 0:00:00]} 25. Kc2 {[%emt 0:03:47]} Qe2+ {[%emt 0:00:00]} 26. Kb3 {[%emt 0:00:13]} Qxh2 {[%emt 0:00:00]} 27. Rfe1 {[%emt 0:03:40]} Rf8 {[%emt 0:00:00]} 28. Qb4 {[%emt 0:06:31]} h6 {[%emt 0:01:15]} 29. Rxd6 {[%emt 0:01:59]} Qg3 {[%emt 0:00:57]} 30. Qe4 {[%emt 0:01:05]} Bg5 {[%emt 0:04:02]} 31. Rf1 {[%emt 0:01:09]} Bf6 {[%emt 0:01:19]} 32. a5 {[%emt 0:02:42]} Ra8 {[%emt 0:02:22]} 33. Rd5 {[%emt 0:01:50]} Rc8 {[%emt 0:00:19]} 34. Qf3 {[%emt 0:00:17]} Qxf3 {[%emt 0:01:01]} 35. Rxf3 {[%emt 0:00:03]} Kf8 {[%emt 0:00:12]} 36. Rd7 {[%emt 0:00:17]} Ra8 {[%emt 0:00:08]} 37. Rxb7 {[%emt 0:00:51]} Rxa5 {[%emt 0:00:05]} 38. Kc4 {[%emt 0:15:24]} Rf5 {[%emt 0:00:25]} 39. Rb5 {[%emt 0:00:00]} Rxb5 {[%emt 0:00:14]} 40. Kxb5 {[%emt 0:00:00]} g5 {[%emt 0:00:00]} 41. fxg5 {[%emt 0:00:00]} Bxg5 {[%emt 0:00:20]} 42. Kc6 {[%emt 0:00:00]} Ke7 {[%emt 0:00:12]} 43. b4 {[%emt 0:00:00]} f6 {[%emt 0:00:05]} 44. b5 {[%emt 0:00:00]} Kd8 {[%emt 0:00:03]} 45. b6 {[%emt 0:00:00]} Kc8 {[%emt 0:00:03]} 46. b7+ {[%emt 0:00:00]} Kb8 {[%emt 0:00:04]} 47. c4 {[%emt 0:00:00]} 1-0

[Event "Romanian Superliga 2024"]
[Site "Mamaia"]
[Date "2024.09.30"]
[Round "3.30"]
[White "Codru, Raul Cristian"]
[Black "David, Alexandru-Vasile"]
[Result "1/2-1/2"]
[ECO "A84"]
[WhiteElo "1786"]
[BlackElo "2345"]
[Annotator "RC"]
[PlyCount "106"]
[EventDate "2024.09.26"]
[EventType "team-tourn"]
[EventCountry "ROU"]
[SourceTitle "playchess.com"]
[Source "ChessBase"]
[SourceQuality "1"]
[TimeControl "40/5400+30:1800+30"]

1. d4 {[%emt 0:00:17]} d5 {[%emt 0:00:06]} 2. c4 {[%emt 0:00:11]} e6 {[%emt 0:00:06]} 3. Nc3 {[%emt 0:00:11]} c6 {[%emt 0:00:06]} 4. e3 {[%emt 0:04:55]} Bd6 {[%emt 0:03:50]} 5. Nf3 {[%emt 0:02:27]} f5 {[%emt 0:00:36]} 6. Bd3 {[%emt 0:07:52]} Nh6 {[%emt 0:00:54]} 7. cxd5 {[%emt 0:16:04]} exd5 {[%emt 0:00:14]} 8. O-O {[%emt 0:04:41]} Nd7 {[%emt 0:02:18]} 9. Qc2 {[%emt 0:03:17]} O-O {[%emt 0:00:48]} 10. Ne2 {[%emt 0:05:08]} Qe7 {[%emt 0:02:17]} 11. Ng3 {[%emt 0:04:33]} g6 {[%emt 0:06:13]} 12. e4 {[%emt 0:18:17]} f4 {[%emt 0:23:00]} 13. e5 {[%emt 0:02:47]} Bc7 {[%emt 0:09:01]} 14. Ne2 {[%emt 0:00:43]} g5 {[%emt 0:10:24]} 15. Bxh7+ {[%emt 0:11:07]} Kh8 {[%emt 0:01:34]} 16. Qg6 {[%emt 0:04:40]} Nxe5 {[%emt 0:02:54]} 17. dxe5 {[%emt 0:03:52]} Qxh7 {[%emt 0:00:58]} 18. Qxh7+ {[%emt 0:00:06]} Kxh7 {[%emt 0:00:05]} 19. Nxg5+ {[%emt 0:00:05]} Kg6 {[%emt 0:00:33]} 20. Nxf4+ {[%emt 0:02:49]} Kf5 {[%emt 0:00:05]} 21. Nf3 {[%emt 0:01:13]} Nf7 {[%emt 0:00:52]} 22. Re1 {[%emt 0:00:39]} Nxe5 {[%emt 0:03:17]} 23. Nxe5 {[%emt 0:01:04]} Bxe5 {[%emt 0:00:05]} 24. g4+ {[%emt 0:02:19]} Kxg4 {[%emt 0:00:18]} 25. Rxe5 {[%emt 0:00:08]} Bf5 {[%emt 0:00:05]} 26. Ng2 {[%emt 0:03:23]} Rae8 {[%emt 0:00:05]} 27. Rxe8 {[%emt 0:00:34]} Rxe8 {[%emt 0:00:01]} 28. Bf4 {[%emt 0:00:30]} d4 {[%emt 0:00:38]} 29. Bg3 {[%emt 0:00:31]} Re2 {[%emt 0:00:52]} 30. Rd1 {[%emt 0:00:29]} c5 {[%emt 0:00:04]} 31. b4 {[%emt 0:00:24]} Bc2 {[%emt 0:00:18]} 32. Re1 {[%emt 0:00:34]} Rxe1+ {[%emt 0:00:05]} 33. Nxe1 {[%emt 0:00:03]} d3 {[%emt 0:00:04]} 34. Nxd3 {[%emt 0:01:00]} Bxd3 {[%emt 0:00:05]} 35. bxc5 {[%emt 0:00:03]} Kf3 {[%emt 0:09:34]} 36. a4 {[%emt 0:00:27]} a5 {[%emt 0:00:22]} 37. Bc7 {[%emt 0:00:10]} Bc2 {[%emt 0:00:06]} 38. Bxa5 {[%emt 0:00:08]} Bxa4 {[%emt 0:00:05]} 39. Bd2 {[%emt 0:01:10]} Kg4 {[%emt 0:09:07]} 40. Be3 {[%emt 0:00:00]} Bb5 {[%emt 0:00:00]} 41. Kg2 {[%emt 0:01:10]} Bc6+ {[%emt 0:05:06]} 42. Kf1 {[%emt 0:00:57]} Kf3 {[%emt 0:00:03]} 43. Ke1 {[%emt 0:03:08]} Be8 {[%emt 0:02:51]} 44. Kd2 {[%emt 0:01:16]} Kg2 {[%emt 0:01:31]} 45. h4 {[%emt 0:00:06]} Kf3 {[%emt 0:00:02]} 46. Kc3 {[%emt 0:00:14]} Kg4 {[%emt 0:00:12]} 47. Bg5 {[%emt 0:00:08]} Kf3 {[%emt 0:00:06]} 48. Kd4 {[%emt 0:00:10]} Kxf2 {[%emt 0:00:15]} 49. Ke5 {[%emt 0:00:10]} Kf3 {[%emt 0:00:11]} 50. Kf5 {[%emt 0:00:36]} Bd7+ {[%emt 0:00:04]} 51. Kg6 {[%emt 0:00:05]} Kg4 {[%emt 0:00:04]} 52. Kf7 {[%emt 0:00:13]} Kh5 {[%emt 0:00:06]} 53. Ke7 {[%emt 0:00:05]} Bc6 {[%emt 0:00:03]} 1/2-1/2

[Event "Romanian Superliga 2024"]
[Site "Mamaia"]
[Date "2024.10.01"]
[Round "4.1"]
[White "Hamitevici, Vladimir"]
[Black "Baranciuc, Alexandr"]
[Result "1-0"]
[ECO "D35"]
[WhiteElo "2419"]
[BlackElo "2333"]
[Annotator "RC"]
[PlyCount "81"]
[EventDate "2024.09.26"]
[EventType "team-tourn"]
[EventCountry "ROU"]
[SourceTitle "playchess.com"]
[Source "ChessBase"]
[SourceQuality "1"]
[TimeControl "40/5400+30:1800+30"]

1. d4 {[%emt 0:00:06]} d5 {[%emt 0:00:10]} 2. c4 {[%emt 0:00:07]} e6 {[%emt 0:00:03]} 3. Nf3 {[%emt 0:00:10]} Nf6 {[%emt 0:00:02]} 4. Nc3 {[%emt 0:01:13]} Nbd7 {[%emt 0:00:06]} 5. cxd5 {[%emt 0:00:45]} exd5 {[%emt 0:00:06]} 6. Qc2 {[%emt 0:01:09]} Bb4 {[%emt 0:10:00]} 7. a3 {[%emt 0:00:21]} Bxc3+ {[%emt 0:00:06]} 8. Qxc3 {[%emt 0:00:39]} Ne4 {[%emt 0:01:49]} 9. Qc2 {[%emt 0:02:48]} O-O {[%emt 0:00:17]} 10. Bf4 {[%emt 0:04:11]} c6 {[%emt 0:00:01]} 11. h3 {[%emt 0:00:45]} h6 {[%emt 0:04:49]} 12. g4 {[%emt 0:09:18]} Re8 {[%emt 0:11:37]} 13. e3 {[%emt 0:10:01]} Nf8 {[%emt 0:00:21]} 14. Ne5 {[%emt 0:12:26]} Ne6 {[%emt 0:03:45]} 15. Bh2 {[%emt 0:03:18]} f6 {[%emt 0:09:31]} 16. Nd3 {[%emt 0:09:40]} Nxd4 {[%emt 0:04:48]} 17. exd4 {[%emt 0:00:06]} Ng3+ {[%emt 0:00:01]} 18. Kd2 {[%emt 0:02:32]} Nxh1 {[%emt 0:00:03]} 19. f3 {[%emt 0:03:27]} f5 {[%emt 0:17:14]} 20. Bg2 {[%emt 0:02:17]} fxg4 {[%emt 0:00:14]} 21. hxg4 {[%emt 0:06:14]} Bxg4 {[%emt 0:00:22]} 22. fxg4 {[%emt 0:01:20]} Qg5+ {[%emt 0:00:05]} 23. Kc3 {[%emt 0:01:08]} c5 {[%emt 0:10:54]} 24. dxc5 {[%emt 0:04:35]} Qxg4 {[%emt 0:00:29]} 25. Bxd5+ {[%emt 0:00:14]} Kh8 {[%emt 0:00:01]} 26. Rg1 {[%emt 0:01:01]} Qf5 {[%emt 0:05:10]} 27. Qg2 {[%emt 0:04:00]} Qf6+ {[%emt 0:00:06]} 28. Kc2 {[%emt 0:04:41]} Rad8 {[%emt 0:01:57]} 29. Bd6 {[%emt 0:01:58]} b6 {[%emt 0:00:50]} 30. Rf1 {[%emt 0:01:06]} Qd4 {[%emt 0:00:20]} 31. Rf4 {[%emt 0:01:44]} Qe3 {[%emt 0:00:09]} 32. Rf7 {[%emt 0:04:15]} Ng3 {[%emt 0:02:34]} 33. Qxg3 {[%emt 0:00:40]} Qxg3 {[%emt 0:00:10]} 34. Bxg3 {[%emt 0:00:05]} Rxd5 {[%emt 0:00:01]} 35. c6 {[%emt 0:02:35]} Re2+ {[%emt 0:02:05]} 36. Kd1 {[%emt 0:01:40]} Re8 {[%emt 0:08:06]} 37. Rd7 {[%emt 0:04:09]} Rxd7 {[%emt 0:01:16]} 38. cxd7 {[%emt 0:00:02]} Rd8 {[%emt 0:00:01]} 39. Ne5 {[%emt 0:00:10]} Kg8 {[%emt 0:00:05]} 40. Be1 {[%emt 0:00:00]} a5 {[%emt 0:00:00]} 41. Bf2 {[%emt 0:00:18]} 1-0

[Event "Romanian Superliga 2024"]
[Site "Mamaia"]
[Date "2024.10.01"]
[Round "4.2"]
[White "Sapocinic, Semion"]
[Black "Raceanu, Valentin"]
[Result "1/2-1/2"]
[ECO "A28"]
[WhiteElo "2219"]
[BlackElo "2427"]
[Annotator "RC"]
[PlyCount "83"]
[EventDate "2024.09.26"]
[EventType "team-tourn"]
[EventCountry "ROU"]
[SourceTitle "playchess.com"]
[Source "ChessBase"]
[SourceQuality "1"]
[TimeControl "40/5400+30:1800+30"]

1. c4 {[%emt 0:00:02]} e5 {[%emt 0:03:52]} 2. Nc3 {[%emt 0:00:14]} Nf6 {[%emt 0:00:22]} 3. Nf3 {[%emt 0:00:06]} Nc6 {[%emt 0:00:31]} 4. e4 {[%emt 0:00:05]} Bb4 {[%emt 0:00:47]} 5. d3 {[%emt 0:00:06]} d6 {[%emt 0:00:39]} 6. a3 {[%emt 0:00:07]} Bxc3+ {[%emt 0:00:27]} 7. bxc3 {[%emt 0:00:06]} h6 {[%emt 0:00:12]} 8. g3 {[%emt 0:00:48]} O-O {[%emt 0:29:58]} 9. Bg2 {[%emt 0:00:15]} Be6 {[%emt 0:03:41]} 10. O-O {[%emt 0:03:18]} Qd7 {[%emt 0:08:45]} 11. Ne1 {[%emt 0:05:49]} Nh7 {[%emt 0:03:01]} 12. Rb1 {[%emt 0:12:58]} Rab8 {[%emt 0:00:50]} 13. Nc2 {[%emt 0:07:36]} f5 {[%emt 0:01:52]} 14. exf5 {[%emt 0:02:41]} Bxf5 {[%emt 0:00:05]} 15. Nb4 {[%emt 0:00:46]} Ne7 {[%emt 0:01:35]} 16. Nd5 {[%emt 0:03:08]} c6 {[%emt 0:09:57]} 17. Nxe7+ {[%emt 0:00:29]} Qxe7 {[%emt 0:00:03]} 18. Be3 {[%emt 0:00:33]} Nf6 {[%emt 0:04:02]} 19. h3 {[%emt 0:03:41]} d5 {[%emt 0:06:57]} 20. cxd5 {[%emt 0:02:48]} Nxd5 {[%emt 0:04:56]} 21. Qb3 {[%emt 0:04:58]} b6 {[%emt 0:11:47]} 22. Rfe1 {[%emt 0:07:03]} Qd7 {[%emt 0:00:59]} 23. c4 {[%emt 0:04:05]} Nxe3 {[%emt 0:00:44]} 24. Rxe3 {[%emt 0:00:10]} Bxh3 {[%emt 0:01:46]} 25. Rxe5 {[%emt 0:14:24]} Bxg2 {[%emt 0:00:46]} 26. Kxg2 {[%emt 0:00:02]} c5 {[%emt 0:01:48]} 27. Rbe1 {[%emt 0:01:05]} Rbd8 {[%emt 0:00:56]} 28. R1e3 {[%emt 0:00:45]} Qc6+ {[%emt 0:01:03]} 29. Kg1 {[%emt 0:00:54]} Rd7 {[%emt 0:00:18]} 30. Re6 {[%emt 0:03:03]} Rd6 {[%emt 0:00:55]} 31. Rxd6 {[%emt 0:03:48]} Qxd6 {[%emt 0:00:03]} 32. Qc3 {[%emt 0:00:11]} Rd8 {[%emt 0:00:55]} 33. a4 {[%emt 0:00:59]} Qd4 {[%emt 0:01:04]} 34. Qxd4 {[%emt 0:00:30]} Rxd4 {[%emt 0:00:04]} 35. a5 {[%emt 0:00:13]} bxa5 {[%emt 0:01:24]} 36. Re5 {[%emt 0:00:11]} Rxd3 {[%emt 0:00:24]} 37. Rxc5 {[%emt 0:00:06]} a4 {[%emt 0:00:27]} 38. Ra5 {[%emt 0:00:06]} a3 {[%emt 0:00:09]} 39. Rxa7 {[%emt 0:00:09]} Rc3 {[%emt 0:00:13]} 40. c5 {[%emt 0:00:00]} Kf8 {[%emt 0:00:00]} 41. c6 {[%emt 0:00:16]} Rxc6 {[%emt 0:01:52]} 42. Rxa3 {[%emt 0:00:06]} 1/2-1/2

[Event "Romanian Superliga 2024"]
[Site "Mamaia"]
[Date "2024.10.01"]
[Round "4.3"]
[White "Soltanici, Ruslan"]
[Black "Tamas, Christian-Arrydan"]
[Result "1/2-1/2"]
[ECO "B12"]
[WhiteElo "2316"]
[BlackElo "2137"]
[Annotator "RC"]
[PlyCount "70"]
[EventDate "2024.09.26"]
[EventType "team-tourn"]
[EventCountry "ROU"]
[SourceTitle "playchess.com"]
[Source "ChessBase"]
[SourceQuality "1"]
[TimeControl "40/5400+30:1800+30"]

1. e4 {[%emt 0:00:05]} c6 {[%emt 0:00:03]} 2. d4 {[%emt 0:00:16]} d5 {[%emt 0:00:04]} 3. e5 {[%emt 0:00:22]} c5 {[%emt 0:00:04]} 4. dxc5 {[%emt 0:00:20]} e6 {[%emt 0:00:06]} 5. c3 {[%emt 0:00:31]} Bxc5 {[%emt 0:02:14]} 6. Qg4 {[%emt 0:00:20]} Ne7 {[%emt 0:02:06]} 7. b4 {[%emt 0:02:18]} h5 {[%emt 0:02:17]} 8. Qh4 {[%emt 0:10:26]} Bb6 {[%emt 0:01:32]} 9. Nf3 {[%emt 0:01:52]} a5 {[%emt 0:19:23]} 10. b5 {[%emt 0:12:02]} Qc7 {[%emt 0:01:47]} 11. Bd3 {[%emt 0:07:13]} Nd7 {[%emt 0:01:41]} 12. O-O {[%emt 0:01:48]} Nxe5 {[%emt 0:05:57]} 13. Nxe5 {[%emt 0:01:02]} Qxe5 {[%emt 0:00:31]} 14. Bf4 {[%emt 0:01:25]} Nf5 {[%emt 0:01:56]} 15. Qg5 {[%emt 0:06:04]} Qf6 {[%emt 0:01:09]} 16. Qxf6 {[%emt 0:04:13]} gxf6 {[%emt 0:00:05]} 17. Bxf5 {[%emt 0:00:15]} exf5 {[%emt 0:00:07]} 18. Be3 {[%emt 0:07:39]} Bxe3 {[%emt 0:03:14]} 19. Re1 {[%emt 0:01:04]} f4 {[%emt 0:01:21]} 20. Nd2 {[%emt 0:04:02]} Bd7 {[%emt 0:07:56]} 21. fxe3 {[%emt 0:21:20]} Bxb5 {[%emt 0:01:42]} 22. Rab1 {[%emt 0:04:50]} Bc6 {[%emt 0:11:06]} 23. exf4+ {[%emt 0:00:26]} Kd7 {[%emt 0:00:11]} 24. Nb3 {[%emt 0:01:07]} Rhe8 {[%emt 0:02:34]} 25. Kf2 {[%emt 0:01:26]} b6 {[%emt 0:04:01]} 26. Nd4 {[%emt 0:02:37]} Kc7 {[%emt 0:00:44]} 27. g3 {[%emt 0:02:52]} Bd7 {[%emt 0:05:04]} 28. Red1 {[%emt 0:03:22]} Rad8 {[%emt 0:02:58]} 29. Rb2 {[%emt 0:00:28]} Ba4 {[%emt 0:03:57]} 30. Rdb1 {[%emt 0:01:12]} Rd6 {[%emt 0:02:52]} 31. Nf5 {[%emt 0:02:05]} Rc6 {[%emt 0:00:10]} 32. Nd4 {[%emt 0:00:13]} Rd6 {[%emt 0:01:34]} 33. Nf5 {[%emt 0:00:09]} Rc6 {[%emt 0:00:09]} 34. Nd4 {[%emt 0:00:10]} Rd6 {[%emt 0:00:39]} 35. Nf5 {[%emt 0:00:09]} Rc6 {[%emt 0:00:04]} 1/2-1/2

[Event "Romanian Superliga 2024"]
[Site "Mamaia"]
[Date "2024.10.01"]
[Round "4.4"]
[White "Dodoi, Matei-Teodor"]
[Black "Cosma, Ioan"]
[Result "0-1"]
[ECO "D39"]
[WhiteElo "2091"]
[BlackElo "2295"]
[Annotator "RC"]
[PlyCount "92"]
[EventDate "2024.09.26"]
[EventType "team-tourn"]
[EventCountry "ROU"]
[SourceTitle "playchess.com"]
[Source "ChessBase"]
[SourceQuality "1"]
[TimeControl "40/5400+30:1800+30"]

1. d4 {[%emt 0:00:04]} Nf6 {[%emt 0:00:20]} 2. c4 {[%emt 0:00:08]} e6 {[%emt 0:00:11]} 3. Nf3 {[%emt 0:00:11]} d5 {[%emt 0:00:25]} 4. Nc3 {[%emt 0:00:16]} dxc4 {[%emt 0:00:46]} 5. e4 {[%emt 0:06:59]} Bb4 {[%emt 0:01:09]} 6. Bg5 {[%emt 0:15:15]} h6 {[%emt 0:01:14]} 7. Bxf6 {[%emt 0:01:21]} Qxf6 {[%emt 0:00:07]} 8. Qa4+ {[%emt 0:03:17]} Nc6 {[%emt 0:00:24]} 9. Bxc4 {[%emt 0:15:44]} Bd7 {[%emt 0:10:31]} 10. Qd1 {[%emt 0:03:23]} Na5 {[%emt 0:12:43]} 11. Bd3 {[%emt 0:04:24]} c5 {[%emt 0:01:02]} 12. a3 {[%emt 0:03:56]} Bxc3+ {[%emt 0:00:28]} 13. bxc3 {[%emt 0:00:07]} cxd4 {[%emt 0:05:23]} 14. cxd4 {[%emt 0:00:24]} Nc6 {[%emt 0:00:15]} 15. Bb1 {[%emt 0:09:28]} g5 {[%emt 0:07:55]} 16. h3 {[%emt 0:03:11]} h5 {[%emt 0:01:16]} 17. e5 {[%emt 0:09:46]} Qg7 {[%emt 0:01:21]} 18. Ra2 {[%emt 0:04:54]} O-O-O {[%emt 0:03:53]} 19. Rd2 {[%emt 0:05:37]} g4 {[%emt 0:00:58]} 20. Nh4 {[%emt 0:00:44]} Ne7 {[%emt 0:07:35]} 21. Be4 {[%emt 0:01:38]} Bc6 {[%emt 0:03:13]} 22. Qc2 {[%emt 0:04:41]} Kb8 {[%emt 0:01:33]} 23. Bxc6 {[%emt 0:02:06]} Nxc6 {[%emt 0:00:31]} 24. Qe4 {[%emt 0:00:21]} Qg5 {[%emt 0:08:04]} 25. g3 {[%emt 0:00:52]} Qxd2+ {[%emt 0:02:11]} 26. Kxd2 {[%emt 0:00:08]} Rxd4+ {[%emt 0:00:05]} 27. Qxd4 {[%emt 0:03:06]} Nxd4 {[%emt 0:00:06]} 28. hxg4 {[%emt 0:00:10]} hxg4 {[%emt 0:00:07]} 29. a4 {[%emt 0:01:00]} Nf3+ {[%emt 0:00:55]} 30. Ke3 {[%emt 0:00:25]} Nxe5 {[%emt 0:00:06]} 31. Rd1 {[%emt 0:00:53]} Kc7 {[%emt 0:00:58]} 32. Ng2 {[%emt 0:01:10]} f5 {[%emt 0:02:59]} 33. Nf4 {[%emt 0:00:25]} Re8 {[%emt 0:00:20]} 34. Rc1+ {[%emt 0:00:46]} Nc6 {[%emt 0:00:29]} 35. Nd3 {[%emt 0:00:38]} Kd6 {[%emt 0:01:28]} 36. Rb1 {[%emt 0:00:27]} b6 {[%emt 0:01:08]} 37. Rd1 {[%emt 0:00:10]} Ne7 {[%emt 0:01:14]} 38. Kd4 {[%emt 0:00:44]} Rc8 {[%emt 0:01:43]} 39. Rd2 {[%emt 0:00:29]} Nd5 {[%emt 0:01:48]} 40. Re2 {[%emt 0:00:00]} Nc3 {[%emt 0:00:00]} 41. Rd2 {[%emt 0:01:27]} Nxa4 {[%emt 0:02:49]} 42. Ne5 {[%emt 0:01:51]} Nc5 {[%emt 0:00:43]} 43. Nc4+ {[%emt 0:00:26]} Ke7 {[%emt 0:00:06]} 44. Rc2 {[%emt 0:01:30]} Nb3+ {[%emt 0:01:31]} 45. Ke5 {[%emt 0:00:25]} Rc5+ {[%emt 0:00:28]} 46. Kf4 {[%emt 0:00:06]} Nd4 {[%emt 0:00:19]} 0-1

[Event "Romanian Superliga 2024"]
[Site "Mamaia"]
[Date "2024.10.01"]
[Round "4.5"]
[White "Itkis, Boris"]
[Black "Costache, Andrei Eugeniu"]
[Result "1/2-1/2"]
[ECO "E52"]
[WhiteElo "2279"]
[BlackElo "1977"]
[Annotator "RC"]
[PlyCount "64"]
[EventDate "2024.09.26"]
[EventType "team-tourn"]
[EventCountry "ROU"]
[SourceTitle "playchess.com"]
[Source "ChessBase"]
[SourceQuality "1"]
[TimeControl "40/5400+30:1800+30"]

1. d4 {[%emt 0:00:05]} Nf6 {[%emt 0:00:18]} 2. c4 {[%emt 0:00:06]} e6 {[%emt 0:00:24]} 3. Nf3 {[%emt 0:00:10]} d5 {[%emt 0:00:28]} 4. Nc3 {[%emt 0:00:13]} Bb4 {[%emt 0:00:58]} 5. e3 {[%emt 0:00:06]} O-O {[%emt 0:02:33]} 6. Bd3 {[%emt 0:01:55]} b6 {[%emt 0:02:44]} 7. O-O {[%emt 0:00:23]} Bb7 {[%emt 0:00:39]} 8. a3 {[%emt 0:01:22]} Be7 {[%emt 0:01:11]} 9. cxd5 {[%emt 0:12:51]} exd5 {[%emt 0:00:22]} 10. Ne5 {[%emt 0:00:05]} c5 {[%emt 0:03:11]} 11. f4 {[%emt 0:01:55]} Nc6 {[%emt 0:01:22]} 12. Qf3 {[%emt 0:02:46]} cxd4 {[%emt 0:03:57]} 13. Nxc6 {[%emt 0:00:08]} Bxc6 {[%emt 0:00:03]} 14. exd4 {[%emt 0:00:07]} Ne4 {[%emt 0:00:37]} 15. f5 {[%emt 0:02:00]} Bf6 {[%emt 0:02:46]} 16. Be3 {[%emt 0:00:12]} Re8 {[%emt 0:00:27]} 17. Rfe1 {[%emt 0:10:39]} Qd6 {[%emt 0:09:43]} 18. Kh1 {[%emt 0:07:46]} Re7 {[%emt 0:07:50]} 19. Bxe4 {[%emt 0:06:07]} dxe4 {[%emt 0:00:13]} 20. Qf2 {[%emt 0:00:04]} Rd8 {[%emt 0:09:39]} 21. Red1 {[%emt 0:00:53]} Bd5 {[%emt 0:02:05]} 22. Nxd5 {[%emt 0:03:05]} Qxd5 {[%emt 0:01:05]} 23. g4 {[%emt 0:00:08]} Rc7 {[%emt 0:10:12]} 24. g5 {[%emt 0:01:16]} Be7 {[%emt 0:00:21]} 25. Rac1 {[%emt 0:05:05]} Rdc8 {[%emt 0:06:13]} 26. Rxc7 {[%emt 0:44:03]} Rxc7 {[%emt 0:00:06]} 27. f6 {[%emt 0:00:00]} Bd6 {[%emt 0:02:15]} 28. fxg7 {[%emt 0:00:00]} Qb3 {[%emt 0:01:34]} 29. Rd2 {[%emt 0:00:00]} Qe6 {[%emt 0:03:39]} 30. Rd1 {[%emt 0:00:00]} Qb3 {[%emt 0:00:32]} 31. Rd2 {[%emt 0:00:00]} Qe6 {[%emt 0:05:32]} 32. Rd1 {[%emt 0:00:00]} Qb3 {[%emt 0:00:51]} 1/2-1/2

[Event "Romanian Superliga 2024"]
[Site "Mamaia"]
[Date "2024.10.01"]
[Round "4.6"]
[White "Codru, Raul Cristian"]
[Black "Negrean, Andrei"]
[Result "0-1"]
[ECO "E39"]
[WhiteElo "1786"]
[BlackElo "2267"]
[Annotator "RC"]
[PlyCount "112"]
[EventDate "2024.09.26"]
[EventType "team-tourn"]
[EventCountry "ROU"]
[SourceTitle "playchess.com"]
[Source "ChessBase"]
[SourceQuality "1"]
[TimeControl "40/5400+30:1800+30"]

1. d4 {[%emt 0:00:36]} Nf6 {[%emt 0:00:14]} 2. c4 {[%emt 0:00:09]} e6 {[%emt 0:00:15]} 3. Nc3 {[%emt 0:00:05]} Bb4 {[%emt 0:00:24]} 4. Qc2 {[%emt 0:00:07]} c5 {[%emt 0:00:20]} 5. dxc5 {[%emt 0:00:06]} O-O {[%emt 0:00:23]} 6. a3 {[%emt 0:00:17]} Bxc5 {[%emt 0:00:13]} 7. b4 {[%emt 0:01:46]} Be7 {[%emt 0:01:14]} 8. Bb2 {[%emt 0:01:26]} a5 {[%emt 0:03:43]} 9. b5 {[%emt 0:04:36]} d6 {[%emt 0:02:37]} 10. Nf3 {[%emt 0:09:08]} b6 {[%emt 0:06:06]} 11. e4 {[%emt 0:10:02]} Bb7 {[%emt 0:00:58]} 12. Be2 {[%emt 0:05:11]} Nbd7 {[%emt 0:00:59]} 13. O-O {[%emt 0:15:03]} Rc8 {[%emt 0:04:00]} 14. Rfd1 {[%emt 0:06:04]} Rc7 {[%emt 0:06:36]} 15. Rac1 {[%emt 0:11:17]} Qa8 {[%emt 0:01:13]} 16. Nd2 {[%emt 0:01:24]} Rfc8 {[%emt 0:06:32]} 17. Qb1 {[%emt 0:05:17]} h6 {[%emt 0:04:52]} 18. f3 {[%emt 0:02:22]} Nc5 {[%emt 0:08:02]} 19. Kh1 {[%emt 0:07:35]} Nh5 {[%emt 0:01:44]} 20. a4 {[%emt 0:03:02]} Bf6 {[%emt 0:03:10]} 21. Qc2 {[%emt 0:02:02]} Nf4 {[%emt 0:11:58]} 22. Bf1 {[%emt 0:01:43]} h5 {[%emt 0:06:35]} 23. Nb3 {[%emt 0:04:31]} Nxb3 {[%emt 0:07:01]} 24. Qxb3 {[%emt 0:00:07]} Be5 {[%emt 0:02:09]} 25. Ne2 {[%emt 0:04:16]} Nxe2 {[%emt 0:03:57]} 26. Bxe2 {[%emt 0:00:01]} Bf4 {[%emt 0:02:10]} 27. Rc2 {[%emt 0:02:41]} d5 {[%emt 0:02:02]} 28. exd5 {[%emt 0:02:25]} exd5 {[%emt 0:00:08]} 29. Bc1 {[%emt 0:01:01]} dxc4 {[%emt 0:01:11]} 30. Rxc4 {[%emt 0:00:31]} Bxc1 {[%emt 0:07:24]} 31. Rdxc1 {[%emt 0:00:00]} Bd5 {[%emt 0:00:25]} 32. Rxc7 {[%emt 0:00:41]} Rxc7 {[%emt 0:00:04]} 33. Qe3 {[%emt 0:00:36]} Rxc1+ {[%emt 0:00:12]} 34. Qxc1 {[%emt 0:00:01]} Qe8 {[%emt 0:01:21]} 35. Qd1 {[%emt 0:01:02]} Qe6 {[%emt 0:00:35]} 36. h3 {[%emt 0:00:32]} Bb3 {[%emt 0:01:54]} 37. Qd8+ {[%emt 0:00:04]} Kh7 {[%emt 0:00:01]} 38. Bd3+ {[%emt 0:00:54]} g6 {[%emt 0:00:05]} 39. Qg5 {[%emt 0:00:20]} Bxa4 {[%emt 0:01:04]} 40. Qxh5+ {[%emt 0:00:00]} Kg7 {[%emt 0:00:00]} 41. Qg5 {[%emt 0:04:12]} Bb3 {[%emt 0:05:39]} 42. Qd2 {[%emt 0:04:40]} Qf6 {[%emt 0:03:48]} 43. Qc1 {[%emt 0:03:22]} Qd4 {[%emt 0:02:12]} 44. Be4 {[%emt 0:01:09]} Qd1+ {[%emt 0:00:57]} 45. Qxd1 {[%emt 0:00:10]} Bxd1 {[%emt 0:00:02]} 46. Kg1 {[%emt 0:01:12]} a4 {[%emt 0:00:10]} 47. Kf2 {[%emt 0:00:04]} Bb3 {[%emt 0:00:07]} 48. Bb1 {[%emt 0:00:07]} a3 {[%emt 0:00:05]} 49. Ke3 {[%emt 0:00:04]} a2 {[%emt 0:00:12]} 50. Bxa2 {[%emt 0:00:22]} Bxa2 {[%emt 0:00:01]} 51. Kd4 {[%emt 0:00:01]} Kf6 {[%emt 0:00:13]} 52. h4 {[%emt 0:00:52]} Be6 {[%emt 0:00:48]} 53. g4 {[%emt 0:01:37]} Bd7 {[%emt 0:00:10]} 54. Kc4 {[%emt 0:00:04]} Ke5 {[%emt 0:00:17]} 55. h5 {[%emt 0:00:30]} gxh5 {[%emt 0:00:11]} 56. gxh5 {[%emt 0:00:08]} Kf6 {[%emt 0:00:03]} 0-1